[Event "Titled Tuesday Blitz August 15 Late 2023"]
[White "Ouellet, Maili-Jade"]
[Black "Lima, Kleyton Alcantara"]
[WhiteFideId "2620472"]
[BlackFideId "22718397"]
[WhiteElo "2332"]
[BlackElo "2541"]
[Result "1-0"]
[Round "3"]
[TimeControl "180+1"]
[Date "2023.08.15"]
[WhiteClock "0:00:05"]
[BlackClock "0:00:13"]
[Board "108"]

1. e4 {[%clk 0:03:00]}  c5 {[%clk 0:02:58]} 2. Nf3 {[%clk 0:03:01]}  d6 {[%clk 0:02:56]} 3. d4 {[%clk 0:03:01]}  cxd4 {[%clk 0:02:57]} 4. Nxd4 {[%clk 0:03:02]}  Nf6 {[%clk 0:02:58]} 5. Nc3 {[%clk 0:03:03]}  a6 {[%clk 0:02:58]} 6. Be3 {[%clk 0:03:02]}  e5 {[%clk 0:02:59]} 7. Nb3 {[%clk 0:03:02]}  Be6 {[%clk 0:02:59]} 8. f3 {[%clk 0:03:01]}  h5 {[%clk 0:02:59]} 9. Qd2 {[%clk 0:03:01]}  Nbd7 {[%clk 0:03:00]} 10. O-O-O {[%clk 0:03:00]}  Be7 {[%clk 0:03:00]} 11. Nd5 {[%clk 0:03:00]}  Bxd5 {[%clk 0:02:54]} 12. exd5 {[%clk 0:03:00]}  Rc8 {[%clk 0:02:47]} 13. Kb1 {[%clk 0:02:49]}  Nb6 {[%clk 0:02:46]} 14. Bxb6 {[%clk 0:02:33]}  Qxb6 {[%clk 0:02:47]} 15. h4 {[%clk 0:02:28]}  O-O {[%clk 0:02:47]} 16. Be2 {[%clk 0:02:21]}  Qc7 {[%clk 0:02:23]} 17. Rc1 {[%clk 0:02:07]}  Rfe8 {[%clk 0:02:13]} 18. g4 {[%clk 0:02:02]}  e4 {[%clk 0:02:07]} 19. g5 {[%clk 0:01:56]}  e3 {[%clk 0:02:03]} 20. Qd4 {[%clk 0:01:50]}  Nd7 {[%clk 0:02:00]} 21. f4 {[%clk 0:01:49]}  g6 {[%clk 0:01:54]} 22. f5 {[%clk 0:01:30]}  Bf8 {[%clk 0:01:28]} 23. c4 {[%clk 0:00:53]}  Bg7 {[%clk 0:01:22]} 24. f6 {[%clk 0:00:52]}  Bf8 {[%clk 0:01:23]} 25. Rh3 {[%clk 0:00:52]}  Nc5 {[%clk 0:01:15]} 26. Rxe3 {[%clk 0:00:48]}  Nxb3 {[%clk 0:01:15]} 27. axb3 {[%clk 0:00:48]}  Qc5 {[%clk 0:01:09]} 28. Qxc5 {[%clk 0:00:45]}  dxc5 {[%clk 0:01:10]} 29. Rcc3 {[%clk 0:00:40]}  Bd6 {[%clk 0:01:09]} 30. Bf1 {[%clk 0:00:34]}  Kf8 {[%clk 0:01:06]} 31. Bh3 {[%clk 0:00:33]}  Rcd8 {[%clk 0:01:04]} 32. Kc2 {[%clk 0:00:23]}  Be5 {[%clk 0:01:00]} 33. Rcd3 {[%clk 0:00:22]}  Bf4 {[%clk 0:00:59]} 34. Rxe8+ {[%clk 0:00:22]}  Rxe8 {[%clk 0:01:00]} 35. Rf3 {[%clk 0:00:22]}  Re2+ {[%clk 0:00:55]} 36. Kd3 {[%clk 0:00:20]}  Rd2+ {[%clk 0:00:54]} 37. Kc3 {[%clk 0:00:19]}  Rh2 {[%clk 0:00:51]} 38. Rxf4 {[%clk 0:00:15]}  Rxh3+ {[%clk 0:00:51]} 39. Kd2 {[%clk 0:00:14]}  Rh2+ {[%clk 0:00:48]} 40. Kc3 {[%clk 0:00:13]}  Rh3+ {[%clk 0:00:48]} 41. Kc2 {[%clk 0:00:14]}  Rh2+ {[%clk 0:00:48]} 42. Kb1 {[%clk 0:00:14]}  Re2 {[%clk 0:00:47]} 43. Ka2 {[%clk 0:00:14]}  Ke8 {[%clk 0:00:46]} 44. Ka3 {[%clk 0:00:14]}  Kd7 {[%clk 0:00:46]} 45. Rf3 {[%clk 0:00:07]}  b6 {[%clk 0:00:44]} 46. Rh3 {[%clk 0:00:06]}  Kd6 {[%clk 0:00:42]} 47. Rh1 {[%clk 0:00:06]}  Re4 {[%clk 0:00:41]} 48. b4 {[%clk 0:00:05]}  Re3+ {[%clk 0:00:41]} 49. b3 {[%clk 0:00:05]}  b5 {[%clk 0:00:39]} 50. bxc5+ {[%clk 0:00:05]}  Kxc5 {[%clk 0:00:39]} 51. cxb5 {[%clk 0:00:05]}  axb5 {[%clk 0:00:39]} 52. Rd1 {[%clk 0:00:06]}  Kd6 {[%clk 0:00:37]} 53. Rd4 {[%clk 0:00:05]}  Kc5 {[%clk 0:00:34]} 54. d6 {[%clk 0:00:05]}  Re8 {[%clk 0:00:27]} 55. Rd1 {[%clk 0:00:05]}  Rd8 {[%clk 0:00:27]} 56. d7 {[%clk 0:00:04]}  b4+ {[%clk 0:00:26]} 57. Kb2 {[%clk 0:00:04]}  Kc6 {[%clk 0:00:25]} 58. Rd4 {[%clk 0:00:05]}  Rxd7 {[%clk 0:00:23]} 59. Rxb4 {[%clk 0:00:04]}  Rd2+ {[%clk 0:00:19]} 60. Ka3 {[%clk 0:00:04]}  Rd7 {[%clk 0:00:18]} 61. Re4 {[%clk 0:00:04]}  Ra7+ {[%clk 0:00:15]} 62. Kb4 {[%clk 0:00:04]}  Kd6 {[%clk 0:00:15]} 63. Kc3 {[%clk 0:00:04]}  Rc7+ {[%clk 0:00:14]} 64. Rc4 {[%clk 0:00:04]}  Rb7 {[%clk 0:00:13]} 65. b4 {[%clk 0:00:04]}  Kd5 {[%clk 0:00:12]} 66. Rc5+ {[%clk 0:00:04]}  Ke6 {[%clk 0:00:12]} 67. b5 {[%clk 0:00:04]}  Kd6 {[%clk 0:00:13]} 68. Kc4 {[%clk 0:00:05]}  Ra7 {[%clk 0:00:12]} 69. Rc6+ {[%clk 0:00:05]}  Kd7 {[%clk 0:00:12]} 70. Kc5 {[%clk 0:00:05]}  Ra1 {[%clk 0:00:13]} 71. Ra6 {[%clk 0:00:05]}  Rc1+ {[%clk 0:00:12]} 72. Kb6 {[%clk 0:00:05]}  Rc4 {[%clk 0:00:12]} 73. Ra7+ {[%clk 0:00:04]}  Ke6 {[%clk 0:00:13]} 74. Re7+ {[%clk 0:00:05]}  Kd6 {[%clk 0:00:13]} 75. Rxf7 {[%clk 0:00:05]}  Rxh4 {[%clk 0:00:14]} 76. Rg7 {[%clk 0:00:06]}  Rf4 {[%clk 0:00:13]} 77. Rxg6 {[%clk 0:00:06]}  h4 {[%clk 0:00:14]} 78. Rh6 {[%clk 0:00:06]}  Rf5 {[%clk 0:00:13]} 79. g6 {[%clk 0:00:06]}  Rxf6 {[%clk 0:00:13]} 80. g7 {[%clk 0:00:05]}  Rxh6 {[%clk 0:00:12]} 81. g8=Q {[%clk 0:00:05]}  h3 {[%clk 0:00:13]} 82. Qf8+ {[%clk 0:00:04]}  Kd5+ {[%clk 0:00:14]} 83. Qxh6 {[%clk 0:00:05]}  h2 {[%clk 0:00:13]} 84. Qxh2 {[%clk 0:00:05]} 1-0


[Site "https://www.chess.com"]

[Event "Titled Tuesday Blitz August 15 Late 2023"]
[White "Young_Catalan_Player09"]
[Black "Osmak, Yuliia"]
[BlackFideId "14101602"]
[WhiteElo "2312"]
[BlackElo "2533"]
[Result "1-0"]
[Round "3"]
[TimeControl "180+1"]
[Date "2023.08.15"]
[WhiteClock "0:00:21"]
[BlackClock "0:00:00"]
[Board "110"]

1. d4 {[%clk 0:03:00]}  d5 {[%clk 0:02:59]} 2. c4 {[%clk 0:03:00]}  c5 {[%clk 0:02:59]} 3. Nf3 {[%clk 0:03:00]}  cxd4 {[%clk 0:02:59]} 4. cxd5 {[%clk 0:02:59]}  Nf6 {[%clk 0:02:58]} 5. Nxd4 {[%clk 0:02:55]}  Qxd5 {[%clk 0:02:58]} 6. Nc3 {[%clk 0:02:54]}  Qa5 {[%clk 0:02:58]} 7. g3 {[%clk 0:02:52]}  e5 {[%clk 0:02:58]} 8. Nb3 {[%clk 0:02:51]}  Qc7 {[%clk 0:02:57]} 9. Bg2 {[%clk 0:02:50]}  Bb4 {[%clk 0:02:57]} 10. O-O {[%clk 0:02:49]}  O-O {[%clk 0:02:54]} 11. Bg5 {[%clk 0:02:48]}  Bxc3 {[%clk 0:02:52]} 12. Rc1 {[%clk 0:02:41]}  Nc6 {[%clk 0:02:37]} 13. Rxc3 {[%clk 0:02:39]}  Nd7 {[%clk 0:02:25]} 14. Be7 {[%clk 0:02:32]}  Re8 {[%clk 0:02:24]} 15. Bd6 {[%clk 0:02:26]}  Qb6 {[%clk 0:02:21]} 16. e3 {[%clk 0:02:02]}  a5 {[%clk 0:02:15]} 17. Qc1 {[%clk 0:01:57]}  a4 {[%clk 0:02:13]} 18. Nc5 {[%clk 0:01:56]}  Nxc5 {[%clk 0:02:12]} 19. Bxc5 {[%clk 0:01:56]}  Qb5 {[%clk 0:02:03]} 20. Rd1 {[%clk 0:01:50]}  Bg4 {[%clk 0:02:00]} 21. f3 {[%clk 0:01:44]}  Be6 {[%clk 0:01:59]} 22. a3 {[%clk 0:01:39]}  Bb3 {[%clk 0:01:55]} 23. Rd6 {[%clk 0:01:38]}  Rad8 {[%clk 0:01:49]} 24. Bf1 {[%clk 0:01:30]}  Qa5 {[%clk 0:01:46]} 25. Rcd3 {[%clk 0:01:29]}  Rxd6 {[%clk 0:01:44]} 26. Rxd6 {[%clk 0:01:30]}  h6 {[%clk 0:01:34]} 27. e4 {[%clk 0:01:26]}  Rd8 {[%clk 0:01:23]} 28. Rxd8+ {[%clk 0:01:19]}  Qxd8 {[%clk 0:01:24]} 29. Be3 {[%clk 0:01:18]}  Nd4 {[%clk 0:01:20]} 30. Kf2 {[%clk 0:01:17]}  Nc2 {[%clk 0:01:11]} 31. Qd2 {[%clk 0:01:16]}  Qc7 {[%clk 0:01:03]} 32. Bd3 {[%clk 0:01:12]}  Nxe3 {[%clk 0:01:01]} 33. Qxe3 {[%clk 0:01:13]}  g5 {[%clk 0:00:55]} 34. h4 {[%clk 0:01:11]}  f6 {[%clk 0:00:48]} 35. Qa7 {[%clk 0:01:04]}  Qd7 {[%clk 0:00:42]} 36. Ke3 {[%clk 0:00:59]}  gxh4 {[%clk 0:00:35]} 37. gxh4 {[%clk 0:00:59]}  Bf7 {[%clk 0:00:34]} 38. Qc5 {[%clk 0:00:53]}  Kg7 {[%clk 0:00:33]} 39. Qb5 {[%clk 0:00:51]}  Qd4+ {[%clk 0:00:31]} 40. Ke2 {[%clk 0:00:49]}  Qg1 {[%clk 0:00:32]} 41. Qxb7 {[%clk 0:00:47]}  Qg2+ {[%clk 0:00:27]} 42. Ke3 {[%clk 0:00:46]}  Qg1+ {[%clk 0:00:26]} 43. Kd2 {[%clk 0:00:47]}  Qf2+ {[%clk 0:00:26]} 44. Kc3 {[%clk 0:00:46]}  Qxf3 {[%clk 0:00:25]} 45. Qc7 {[%clk 0:00:41]}  Qe3 {[%clk 0:00:22]} 46. Qd7 {[%clk 0:00:38]}  Qc1+ {[%clk 0:00:21]} 47. Bc2 {[%clk 0:00:36]}  Qe1+ {[%clk 0:00:21]} 48. Kd3 {[%clk 0:00:30]}  Qxh4 {[%clk 0:00:19]} 49. Bxa4 {[%clk 0:00:27]}  Qg3+ {[%clk 0:00:16]} 50. Kc2 {[%clk 0:00:26]}  h5 {[%clk 0:00:16]} 51. Bc6 {[%clk 0:00:21]}  Qb3+ {[%clk 0:00:09]} 52. Kc1 {[%clk 0:00:21]}  Qe3+ {[%clk 0:00:09]} 53. Kc2 {[%clk 0:00:21]}  Qc5+ {[%clk 0:00:09]} 54. Kb1 {[%clk 0:00:20]}  Kg8 {[%clk 0:00:05]} 55. Bd5 {[%clk 0:00:18]}  Bxd5 {[%clk 0:00:04]} 56. exd5 {[%clk 0:00:19]}  Qd4 {[%clk 0:00:02]} 57. Qe6+ {[%clk 0:00:19]}  Kg7 {[%clk 0:00:01]} 58. d6 {[%clk 0:00:20]}  e4 {[%clk 0:00:01]} 59. d7 {[%clk 0:00:21]}  Qd3+ {[%clk 0:00:01]} 60. Ka2 {[%clk 0:00:20]}  e3 {[%clk 0:00:02]} 61. Qe7+ {[%clk 0:00:20]}  Kg6 {[%clk 0:00:02]} 62. Qe8+ {[%clk 0:00:20]}  Kg5 {[%clk 0:00:00]} 63. d8=Q {[%clk 0:00:21]} 1-0


[Site "https://www.chess.com"]

[Event "Titled Tuesday Blitz August 15 Late 2023"]
[White "Remolar Gallen, Jose"]
[Black "Dr_Pepper18"]
[WhiteFideId "2215187"]
[WhiteElo "2532"]
[BlackElo "2308"]
[Result "1-0"]
[Round "3"]
[TimeControl "180+1"]
[Date "2023.08.15"]
[WhiteClock "0:01:02"]
[BlackClock "0:01:04"]
[Board "111"]

1. e4 {[%clk 0:03:00]}  e6 {[%clk 0:02:59]} 2. Nf3 {[%clk 0:02:59]}  d5 {[%clk 0:03:00]} 3. e5 {[%clk 0:03:00]}  Ne7 {[%clk 0:02:48]} 4. d4 {[%clk 0:02:56]}  c5 {[%clk 0:02:49]} 5. dxc5 {[%clk 0:02:54]}  Ng6 {[%clk 0:02:47]} 6. h4 {[%clk 0:02:17]}  Qc7 {[%clk 0:02:43]} 7. c4 {[%clk 0:02:05]}  Nxe5 {[%clk 0:02:26]} 8. cxd5 {[%clk 0:02:03]}  Nxf3+ {[%clk 0:02:15]} 9. Qxf3 {[%clk 0:02:02]}  Qxc5 {[%clk 0:02:15]} 10. Nc3 {[%clk 0:02:00]}  Be7 {[%clk 0:02:00]} 11. Be3 {[%clk 0:01:53]}  Qb4 {[%clk 0:01:55]} 12. Bb5+ {[%clk 0:01:38]}  Bd7 {[%clk 0:01:53]} 13. dxe6 {[%clk 0:01:37]}  Bxb5 {[%clk 0:01:42]} 14. Qxf7+ {[%clk 0:01:35]}  Kd8 {[%clk 0:01:42]} 15. O-O-O+ {[%clk 0:01:32]}  Kc8 {[%clk 0:01:39]} 16. a3 {[%clk 0:01:04]}  Be8 {[%clk 0:01:04]} 17. Qxg7 {[%clk 0:01:02]} 1-0


[Site "https://www.chess.com"]

[Event "Titled Tuesday Blitz August 15 Late 2023"]
[White "rikchessmx"]
[Black "Santos Flores, Alberto"]
[BlackFideId "3601234"]
[WhiteElo "2302"]
[BlackElo "2531"]
[Result "0-1"]
[Round "3"]
[TimeControl "180+1"]
[Date "2023.08.15"]
[WhiteClock "0:01:30"]
[BlackClock "0:02:34"]
[Board "112"]

1. e4 {[%clk 0:02:52]}  e6 {[%clk 0:02:58]} 2. d4 {[%clk 0:02:51]}  d5 {[%clk 0:02:58]} 3. Nc3 {[%clk 0:02:50]}  Nf6 {[%clk 0:02:58]} 4. Bg5 {[%clk 0:02:50]}  Bb4 {[%clk 0:02:58]} 5. e5 {[%clk 0:02:50]}  h6 {[%clk 0:02:58]} 6. Bd2 {[%clk 0:02:49]}  Bxc3 {[%clk 0:02:58]} 7. bxc3 {[%clk 0:02:50]}  Ne4 {[%clk 0:02:58]} 8. Qg4 {[%clk 0:02:51]}  Kf8 {[%clk 0:02:58]} 9. Bd3 {[%clk 0:02:51]}  Nxd2 {[%clk 0:02:58]} 10. Kxd2 {[%clk 0:02:51]}  c5 {[%clk 0:02:59]} 11. h4 {[%clk 0:02:51]}  Nc6 {[%clk 0:02:59]} 12. Rh3 {[%clk 0:02:50]}  c4 {[%clk 0:02:59]} 13. Rg3 {[%clk 0:02:41]}  cxd3 {[%clk 0:02:59]} 14. Qxg7+ {[%clk 0:02:41]}  Ke7 {[%clk 0:03:00]} 15. Qf6+ {[%clk 0:02:41]}  Kd7 {[%clk 0:03:00]} 16. Qxf7+ {[%clk 0:02:38]}  Qe7 {[%clk 0:03:00]} 17. Qg6 {[%clk 0:02:33]}  dxc2 {[%clk 0:02:57]} 18. Rf3 {[%clk 0:02:31]}  Rf8 {[%clk 0:02:57]} 19. Qxh6 {[%clk 0:02:25]}  Rxf3 {[%clk 0:02:56]} 20. Nxf3 {[%clk 0:02:26]}  Kc7 {[%clk 0:02:56]} 21. g4 {[%clk 0:02:22]}  Bd7 {[%clk 0:02:56]} 22. g5 {[%clk 0:02:17]}  Rf8 {[%clk 0:02:55]} 23. Qh5 {[%clk 0:02:08]}  Be8 {[%clk 0:02:46]} 24. Qg4 {[%clk 0:02:07]}  Bg6 {[%clk 0:02:46]} 25. h5 {[%clk 0:02:04]}  Be4 {[%clk 0:02:46]} 26. Ne1 {[%clk 0:01:57]}  Rxf2+ {[%clk 0:02:45]} 27. Ke3 {[%clk 0:01:57]}  Qf8 {[%clk 0:02:35]} 28. g6 {[%clk 0:01:52]}  Na5 {[%clk 0:02:35]} 29. g7 {[%clk 0:01:30]}  Nc4# {[%clk 0:02:34]} 0-1


[Site "https://www.chess.com"]

[Event "Titled Tuesday Blitz August 15 Late 2023"]
[White "Barwinska, Ewa"]
[Black "Urbina Perez, Juan Antonio"]
[WhiteFideId "21833761"]
[BlackFideId "2217368"]
[WhiteElo "2281"]
[BlackElo "2526"]
[Result "1-0"]
[Round "3"]
[TimeControl "180+1"]
[Date "2023.08.15"]
[WhiteClock "0:00:43"]
[BlackClock "0:00:26"]
[Board "114"]

1. e4 {[%clk 0:03:00]}  e5 {[%clk 0:02:59]} 2. Nf3 {[%clk 0:03:01]}  Nc6 {[%clk 0:02:58]} 3. Bc4 {[%clk 0:03:00]}  Bc5 {[%clk 0:02:56]} 4. O-O {[%clk 0:03:00]}  Nf6 {[%clk 0:02:56]} 5. d3 {[%clk 0:03:01]}  d6 {[%clk 0:02:55]} 6. c3 {[%clk 0:03:01]}  a5 {[%clk 0:02:55]} 7. a4 {[%clk 0:03:00]}  h6 {[%clk 0:02:49]} 8. h3 {[%clk 0:03:00]}  O-O {[%clk 0:02:48]} 9. Re1 {[%clk 0:02:59]}  Re8 {[%clk 0:02:47]} 10. Nbd2 {[%clk 0:02:57]}  Be6 {[%clk 0:02:46]} 11. Qb3 {[%clk 0:02:55]}  Bxc4 {[%clk 0:02:43]} 12. Nxc4 {[%clk 0:02:54]}  Rb8 {[%clk 0:02:35]} 13. Be3 {[%clk 0:02:47]}  Bxe3 {[%clk 0:02:33]} 14. Nxe3 {[%clk 0:02:47]}  Ne7 {[%clk 0:02:31]} 15. Nh4 {[%clk 0:02:41]}  c6 {[%clk 0:02:30]} 16. Nhf5 {[%clk 0:02:41]}  Nxf5 {[%clk 0:02:26]} 17. Nxf5 {[%clk 0:02:42]}  d5 {[%clk 0:02:25]} 18. Rad1 {[%clk 0:02:19]}  Re6 {[%clk 0:02:17]} 19. Qc2 {[%clk 0:02:03]}  Qc7 {[%clk 0:02:07]} 20. Qe2 {[%clk 0:01:49]}  Kh7 {[%clk 0:02:03]} 21. Qf3 {[%clk 0:01:47]}  g6 {[%clk 0:01:54]} 22. Ne3 {[%clk 0:01:36]}  Kg7 {[%clk 0:01:54]} 23. exd5 {[%clk 0:01:36]}  cxd5 {[%clk 0:01:53]} 24. Nxd5 {[%clk 0:01:35]}  Nxd5 {[%clk 0:01:52]} 25. Qxd5 {[%clk 0:01:36]}  Rd8 {[%clk 0:01:52]} 26. Qe4 {[%clk 0:01:34]}  Qb6 {[%clk 0:01:46]} 27. Qh4 {[%clk 0:01:23]}  Rde8 {[%clk 0:01:38]} 28. b4 {[%clk 0:01:21]}  axb4 {[%clk 0:01:38]} 29. cxb4 {[%clk 0:01:21]}  Qc6 {[%clk 0:01:31]} 30. d4 {[%clk 0:01:18]}  Qxa4 {[%clk 0:01:18]} 31. dxe5 {[%clk 0:01:02]}  Rxe5 {[%clk 0:01:12]} 32. Qd4 {[%clk 0:01:02]}  f6 {[%clk 0:00:59]} 33. Rxe5 {[%clk 0:00:58]}  fxe5 {[%clk 0:00:51]} 34. Qd7+ {[%clk 0:00:59]}  Qxd7 {[%clk 0:00:50]} 35. Rxd7+ {[%clk 0:01:00]}  Kf6 {[%clk 0:00:50]} 36. Rxb7 {[%clk 0:01:00]}  Rc8 {[%clk 0:00:49]} 37. Kh2 {[%clk 0:00:57]}  Rc3 {[%clk 0:00:44]} 38. f3 {[%clk 0:00:53]}  Rb3 {[%clk 0:00:43]} 39. b5 {[%clk 0:00:51]}  h5 {[%clk 0:00:42]} 40. h4 {[%clk 0:00:49]}  Rb2 {[%clk 0:00:33]} 41. b6 {[%clk 0:00:49]}  Rb3 {[%clk 0:00:32]} 42. Rb8 {[%clk 0:00:49]}  Kf7 {[%clk 0:00:32]} 43. b7 {[%clk 0:00:47]}  Kg7 {[%clk 0:00:31]} 44. Kg3 {[%clk 0:00:47]}  e4 {[%clk 0:00:31]} 45. Kf2 {[%clk 0:00:47]}  exf3 {[%clk 0:00:31]} 46. gxf3 {[%clk 0:00:48]}  Kf7 {[%clk 0:00:29]} 47. Rh8 {[%clk 0:00:42]}  Rxb7 {[%clk 0:00:26]} 48. Rh7+ {[%clk 0:00:43]} 1-0


[Site "https://www.chess.com"]

[Event "Titled Tuesday Blitz August 15 Late 2023"]
[White "Nanu, Costica-Ciprian"]
[Black "Ai, Evan"]
[WhiteFideId "1204580"]
[BlackFideId "2094770"]
[WhiteElo "2524"]
[BlackElo "2274"]
[Result "1-0"]
[Round "3"]
[TimeControl "180+1"]
[Date "2023.08.15"]
[WhiteClock "0:00:31"]
[BlackClock "0:00:06"]
[Board "115"]

1. Nf3 {[%clk 0:03:00]}  Nf6 {[%clk 0:02:47]} 2. b3 {[%clk 0:02:59]}  d5 {[%clk 0:02:47]} 3. Bb2 {[%clk 0:02:59]}  e6 {[%clk 0:02:41]} 4. e3 {[%clk 0:02:59]}  Nbd7 {[%clk 0:02:41]} 5. g3 {[%clk 0:02:59]}  Be7 {[%clk 0:02:39]} 6. Bg2 {[%clk 0:02:59]}  O-O {[%clk 0:02:39]} 7. O-O {[%clk 0:02:59]}  b6 {[%clk 0:02:34]} 8. d3 {[%clk 0:02:59]}  Bb7 {[%clk 0:02:31]} 9. Nbd2 {[%clk 0:03:00]}  c5 {[%clk 0:02:27]} 10. Re1 {[%clk 0:03:00]}  a6 {[%clk 0:02:26]} 11. e4 {[%clk 0:03:00]}  Rc8 {[%clk 0:02:23]} 12. e5 {[%clk 0:03:00]}  Ne8 {[%clk 0:02:23]} 13. h4 {[%clk 0:02:59]}  Nc7 {[%clk 0:02:22]} 14. Nf1 {[%clk 0:02:59]}  b5 {[%clk 0:02:10]} 15. N1h2 {[%clk 0:02:57]}  Nb6 {[%clk 0:01:53]} 16. h5 {[%clk 0:02:56]}  h6 {[%clk 0:01:50]} 17. Ng4 {[%clk 0:02:56]}  c4 {[%clk 0:01:47]} 18. Bc1 {[%clk 0:02:54]}  Kh8 {[%clk 0:01:45]} 19. Be3 {[%clk 0:02:53]}  Nd7 {[%clk 0:01:37]} 20. d4 {[%clk 0:02:19]}  b4 {[%clk 0:01:17]} 21. Qc1 {[%clk 0:02:17]}  Nb5 {[%clk 0:01:15]} 22. Nfh2 {[%clk 0:01:50]}  Bg5 {[%clk 0:01:13]} 23. f4 {[%clk 0:01:49]}  Be7 {[%clk 0:01:13]} 24. Qd1 {[%clk 0:01:31]}  Nc3 {[%clk 0:01:01]} 25. Qf3 {[%clk 0:01:30]}  cxb3 {[%clk 0:00:47]} 26. axb3 {[%clk 0:01:19]}  Ne4 {[%clk 0:00:35]} 27. f5 {[%clk 0:01:18]}  exf5 {[%clk 0:00:30]} 28. Qxf5 {[%clk 0:01:17]}  Rxc2 {[%clk 0:00:15]} 29. Rac1 {[%clk 0:00:57]}  Rxc1 {[%clk 0:00:12]} 30. Rxc1 {[%clk 0:00:57]}  Bc8 {[%clk 0:00:13]} 31. Bxe4 {[%clk 0:00:52]}  dxe4 {[%clk 0:00:10]} 32. Qxe4 {[%clk 0:00:51]}  Nb6 {[%clk 0:00:09]} 33. Bxh6 {[%clk 0:00:39]}  gxh6 {[%clk 0:00:06]} 34. Rc6 {[%clk 0:00:35]}  Bg5 {[%clk 0:00:05]} 35. Nf6 {[%clk 0:00:31]}  Bb7 {[%clk 0:00:06]} 36. Qh7# {[%clk 0:00:31]} 1-0


[Site "https://www.chess.com"]

[Event "Titled Tuesday Blitz August 15 Late 2023"]
[White "Kula, Robert"]
[Black "Grebeniuk, Semen"]
[WhiteFideId "1101218"]
[BlackFideId "14117509"]
[WhiteElo "2268"]
[BlackElo "2520"]
[Result "0-1"]
[Round "3"]
[TimeControl "180+1"]
[Date "2023.08.15"]
[WhiteClock "0:00:18"]
[BlackClock "0:00:12"]
[Board "116"]

1. d4 {[%clk 0:03:00]}  f5 {[%clk 0:02:58]} 2. Bg5 {[%clk 0:02:59]}  g6 {[%clk 0:02:57]} 3. e3 {[%clk 0:02:59]}  Nh6 {[%clk 0:02:58]} 4. c4 {[%clk 0:02:58]}  Nf7 {[%clk 0:02:58]} 5. Bh4 {[%clk 0:02:57]}  Bg7 {[%clk 0:02:58]} 6. Nc3 {[%clk 0:02:56]}  O-O {[%clk 0:02:58]} 7. f4 {[%clk 0:02:54]}  d6 {[%clk 0:02:58]} 8. Nf3 {[%clk 0:02:54]}  c6 {[%clk 0:02:58]} 9. Bd3 {[%clk 0:02:49]}  Qe8 {[%clk 0:02:58]} 10. Bg3 {[%clk 0:02:44]}  e5 {[%clk 0:02:51]} 11. fxe5 {[%clk 0:02:27]}  dxe5 {[%clk 0:02:51]} 12. Be2 {[%clk 0:02:27]}  Nd7 {[%clk 0:02:27]} 13. O-O {[%clk 0:02:26]}  e4 {[%clk 0:02:23]} 14. Nd2 {[%clk 0:02:22]}  Nf6 {[%clk 0:02:21]} 15. c5 {[%clk 0:01:56]}  Be6 {[%clk 0:02:16]} 16. Nc4 {[%clk 0:01:55]}  Qe7 {[%clk 0:02:15]} 17. Nd6 {[%clk 0:01:52]}  Rad8 {[%clk 0:02:04]} 18. Nxf7 {[%clk 0:01:44]}  Qxf7 {[%clk 0:02:03]} 19. Bd6 {[%clk 0:01:43]}  Rfe8 {[%clk 0:02:03]} 20. b4 {[%clk 0:01:40]}  Bh6 {[%clk 0:01:36]} 21. Bf4 {[%clk 0:01:37]}  Bxf4 {[%clk 0:01:35]} 22. Rxf4 {[%clk 0:01:37]}  Bc4 {[%clk 0:01:31]} 23. Qf1 {[%clk 0:01:26]}  Bxe2 {[%clk 0:01:30]} 24. Qxe2 {[%clk 0:01:26]}  h5 {[%clk 0:01:22]} 25. Raf1 {[%clk 0:01:24]}  b6 {[%clk 0:01:07]} 26. Qc2 {[%clk 0:01:12]}  Qe6 {[%clk 0:01:04]} 27. h3 {[%clk 0:01:04]}  bxc5 {[%clk 0:00:56]} 28. bxc5 {[%clk 0:01:03]}  Rb8 {[%clk 0:00:56]} 29. Qa4 {[%clk 0:01:02]}  Re7 {[%clk 0:00:54]} 30. R4f2 {[%clk 0:00:58]}  Reb7 {[%clk 0:00:49]} 31. Qa6 {[%clk 0:00:51]}  h4 {[%clk 0:00:38]} 32. Rf4 {[%clk 0:00:47]}  Rh7 {[%clk 0:00:37]} 33. R4f2 {[%clk 0:00:45]}  Nd5 {[%clk 0:00:34]} 34. Nxd5 {[%clk 0:00:40]}  Qxd5 {[%clk 0:00:35]} 35. Kh1 {[%clk 0:00:35]}  Rhb7 {[%clk 0:00:35]} 36. Rf4 {[%clk 0:00:33]}  Rh7 {[%clk 0:00:35]} 37. Qe2 {[%clk 0:00:32]}  Rf8 {[%clk 0:00:33]} 38. Qf2 {[%clk 0:00:32]}  Qd8 {[%clk 0:00:30]} 39. Rg1 {[%clk 0:00:29]}  Rh5 {[%clk 0:00:25]} 40. g4 {[%clk 0:00:29]}  hxg3 {[%clk 0:00:24]} 41. Rxg3 {[%clk 0:00:29]}  Qf6 {[%clk 0:00:20]} 42. Qg2 {[%clk 0:00:29]}  Kf7 {[%clk 0:00:18]} 43. Kg1 {[%clk 0:00:29]}  Rfh8 {[%clk 0:00:19]} 44. Kf2 {[%clk 0:00:26]}  Rh4 {[%clk 0:00:19]} 45. Rxh4 {[%clk 0:00:23]}  Rxh4 {[%clk 0:00:20]} 46. Ke2 {[%clk 0:00:23]}  Qe6 {[%clk 0:00:16]} 47. Kd1 {[%clk 0:00:23]}  Qc4 {[%clk 0:00:16]} 48. Rxg6 {[%clk 0:00:22]}  Qd3+ {[%clk 0:00:15]} 49. Kc1 {[%clk 0:00:22]}  Qxe3+ {[%clk 0:00:15]} 50. Kb2 {[%clk 0:00:22]}  Qxd4+ {[%clk 0:00:15]} 51. Kb1 {[%clk 0:00:21]}  Rf4 {[%clk 0:00:14]} 52. Rd6 {[%clk 0:00:19]}  Qb4+ {[%clk 0:00:11]} 53. Kc2 {[%clk 0:00:18]}  Qxc5+ {[%clk 0:00:11]} 54. Kb2 {[%clk 0:00:18]}  Qxd6 {[%clk 0:00:11]} 55. Kb3 {[%clk 0:00:18]}  Qd5+ {[%clk 0:00:11]} 56. Kb4 {[%clk 0:00:18]}  Rf3 {[%clk 0:00:12]} 57. Qg5 {[%clk 0:00:18]}  a5+ {[%clk 0:00:12]} 58. Ka4 {[%clk 0:00:18]}  Qb5# {[%clk 0:00:12]} 0-1


[Site "https://www.chess.com"]

[Event "Titled Tuesday Blitz August 15 Late 2023"]
[White "Ardila, Oscar Humberto"]
[Black "Morgunov, Marc"]
[WhiteFideId "4404742"]
[BlackFideId "1640305"]
[WhiteElo "2265"]
[BlackElo "2520"]
[Result "1-0"]
[Round "3"]
[TimeControl "180+1"]
[Date "2023.08.15"]
[WhiteClock "0:00:23"]
[BlackClock "0:00:00"]
[Board "117"]

1. d4 {[%clk 0:02:59]}  Nf6 {[%clk 0:02:59]} 2. c4 {[%clk 0:02:58]}  b6 {[%clk 0:03:00]} 3. Nf3 {[%clk 0:02:57]}  Bb7 {[%clk 0:03:00]} 4. e3 {[%clk 0:02:58]}  g6 {[%clk 0:03:00]} 5. Be2 {[%clk 0:02:58]}  Bg7 {[%clk 0:03:01]} 6. O-O {[%clk 0:02:58]}  O-O {[%clk 0:03:01]} 7. Nc3 {[%clk 0:02:59]}  e6 {[%clk 0:02:56]} 8. b3 {[%clk 0:02:55]}  d5 {[%clk 0:02:56]} 9. Ba3 {[%clk 0:02:54]}  Re8 {[%clk 0:02:55]} 10. Rc1 {[%clk 0:02:54]}  Nbd7 {[%clk 0:02:51]} 11. cxd5 {[%clk 0:02:52]}  Nxd5 {[%clk 0:02:42]} 12. Nxd5 {[%clk 0:02:51]}  Bxd5 {[%clk 0:02:43]} 13. Qc2 {[%clk 0:02:50]}  c5 {[%clk 0:02:25]} 14. dxc5 {[%clk 0:02:49]}  Rc8 {[%clk 0:02:20]} 15. Ba6 {[%clk 0:02:47]}  Rc7 {[%clk 0:02:10]} 16. e4 {[%clk 0:02:31]}  Nxc5 {[%clk 0:01:55]} 17. Bb5 {[%clk 0:01:54]}  Bxe4 {[%clk 0:01:40]} 18. Qe2 {[%clk 0:01:54]}  Rf8 {[%clk 0:01:24]} 19. Rfd1 {[%clk 0:01:53]}  Qa8 {[%clk 0:01:17]} 20. b4 {[%clk 0:01:43]}  a6 {[%clk 0:01:00]} 21. bxc5 {[%clk 0:01:31]}  axb5 {[%clk 0:01:00]} 22. cxb6 {[%clk 0:01:31]}  Rxc1 {[%clk 0:00:58]} 23. Bxc1 {[%clk 0:01:31]}  Qb7 {[%clk 0:00:40]} 24. Be3 {[%clk 0:01:30]}  b4 {[%clk 0:00:35]} 25. Ne1 {[%clk 0:01:15]}  Ra8 {[%clk 0:00:32]} 26. Qb5 {[%clk 0:00:59]}  Bd5 {[%clk 0:00:12]} 27. Qxb4 {[%clk 0:00:45]}  Rxa2 {[%clk 0:00:11]} 28. Rc1 {[%clk 0:00:45]}  Be5 {[%clk 0:00:08]} 29. Qb5 {[%clk 0:00:36]}  Kg7 {[%clk 0:00:05]} 30. Qd3 {[%clk 0:00:25]}  Rb2 {[%clk 0:00:05]} 31. Bd4 {[%clk 0:00:24]}  Bxd4 {[%clk 0:00:01]} 32. Qxd4+ {[%clk 0:00:24]}  f6 {[%clk 0:00:00]} 33. Qxb2 {[%clk 0:00:23]} 1-0


[Site "https://www.chess.com"]